[Event "Early-Titled-Tuesday-Blitz-February-13-2024"]
[Site "Chess.com"]
[Date "2024.02.13"]
[Round "2"]
[White "Witik"]
[Black "The_Straightforward_Rook"]
[Result "1/2-1/2"]
[WhiteElo "2707"]
[BlackElo "2424"]
[TimeControl "180+1"]
[EndTime "8:19:40 PST"]
[Termination "Game drawn by agreement"]

1. e4 {[%clk 0:02:58]} 1... c6 {[%clk 0:02:57.2]} 2. d4 {[%clk 0:02:54.7]} 2...
d5 {[%clk 0:02:58.1]} 3. Nc3 {[%clk 0:02:52.9]} 3... dxe4 {[%clk 0:02:58]} 4.
Nxe4 {[%clk 0:02:52.3]} 4... Nf6 {[%clk 0:02:58.5]} 5. Nxf6+ {[%clk 0:02:50.8]}
5... exf6 {[%clk 0:02:59.4]} 6. c3 {[%clk 0:02:50.9]} 6... Bd6 {[%clk
0:02:58.4]} 7. Bd3 {[%clk 0:02:50.9]} 7... O-O {[%clk 0:02:58.4]} 8. Qc2 {[%clk
0:02:51.4]} 8... Re8+ {[%clk 0:02:57.5]} 9. Ne2 {[%clk 0:02:52.1]} 9... h6
{[%clk 0:02:57.5]} 10. O-O {[%clk 0:02:46.1]} 10... Nd7 {[%clk 0:02:55.8]} 11.
Bf4 {[%clk 0:02:42.8]} 11... Nf8 {[%clk 0:02:53.9]} 12. Bg3 {[%clk 0:02:37.4]}
12... a5 {[%clk 0:02:51.3]} 13. c4 {[%clk 0:02:32.6]} 13... a4 {[%clk
0:02:48.1]} 14. Rad1 {[%clk 0:02:27]} 14... Bg4 {[%clk 0:02:42.9]} 15. f3 {[%clk
0:02:25.5]} 15... Bh5 {[%clk 0:02:41.3]} 16. Rfe1 {[%clk 0:02:13.7]} 16... Bxg3
{[%clk 0:02:39.5]} 17. hxg3 {[%clk 0:02:12.2]} 17... Bg6 {[%clk 0:02:39.1]} 18.
Qc3 {[%clk 0:01:51]} 18... Re3 {[%clk 0:02:34.8]} 19. Nf4 {[%clk 0:01:45.8]}
19... Rxe1+ {[%clk 0:02:31.8]} 20. Rxe1 {[%clk 0:01:44.3]} 20... Bxd3 {[%clk
0:02:31.1]} 21. Qxd3 {[%clk 0:01:42.2]} 21... Qd7 {[%clk 0:02:13]} 22. d5 {[%clk
0:01:40.5]} 22... b5 {[%clk 0:02:06.1]} 23. dxc6 {[%clk 0:01:28.7]} 23... Qxd3
{[%clk 0:02:07]} 24. Nxd3 {[%clk 0:01:28.7]} 24... bxc4 {[%clk 0:02:07.9]} 25.
Nb4 {[%clk 0:01:28.2]} 25... a3 {[%clk 0:02:03.4]} 26. bxa3 {[%clk 0:01:27.5]}
26... Ne6 {[%clk 0:01:57.1]} 27. Rc1 {[%clk 0:01:25.9]} 27... Rxa3 {[%clk
0:01:42.4]} 28. Rxc4 {[%clk 0:01:25.8]} 28... Ra4 {[%clk 0:01:43]} 29. Kf2
{[%clk 0:01:15]} 29... Nc7 {[%clk 0:01:40.5]} 30. Re4 {[%clk 0:00:36.9]} 30...
Kf8 {[%clk 0:01:34.9]} 31. g4 {[%clk 0:00:36.8]} 31... Na6 {[%clk 0:01:21.7]}
32. Nd5 {[%clk 0:00:22.6]} 32... Rxa2+ {[%clk 0:01:19.7]} 33. Kg3 {[%clk
0:00:23.1]} 33... Rc2 {[%clk 0:01:17]} 34. Ne7 {[%clk 0:00:14.7]} 34... Nc7
{[%clk 0:01:15]} 35. Nf5 {[%clk 0:00:09.7]} 35... Rxc6 {[%clk 0:01:09.9]} 36.
Rb4 {[%clk 0:00:10.2]} 36... Na6 {[%clk 0:01:07.2]} 37. Rb7 {[%clk 0:00:10.2]}
37... g6 {[%clk 0:01:04.1]} 38. Nd4 {[%clk 0:00:08.4]} 38... Rc7 {[%clk
0:01:01.7]} 39. Rb6 {[%clk 0:00:08.2]} 39... Nc5 {[%clk 0:00:59.7]} 40. Rxf6
{[%clk 0:00:08.7]} 40... Kg7 {[%clk 0:00:55.5]} 41. Rb6 {[%clk 0:00:08.9]} 41...
Re7 {[%clk 0:00:53.4]} 42. Nb5 {[%clk 0:00:08.4]} 42... Ne6 {[%clk 0:00:52.4]}
43. Nd6 {[%clk 0:00:07.2]} 43... Rd7 {[%clk 0:00:50.4]} 44. Ne4 {[%clk
0:00:07.5]} 44... Ng5 {[%clk 0:00:45.8]} 45. Nxg5 {[%clk 0:00:06.2]} 45... hxg5
{[%clk 0:00:46.7]} 46. Rb5 {[%clk 0:00:06.6]} 46... Kf6 {[%clk 0:00:46.8]} 47.
Rb6+ {[%clk 0:00:06]} 1/2-1/2

[Event "Early-Titled-Tuesday-Blitz-February-13-2024"]
[Site "Chess.com"]
[Date "2024.02.13"]
[Round "2"]
[White "wadsy27"]
[Black "viviania"]
[Result "0-1"]
[WhiteElo "2624"]
[BlackElo "2915"]
[TimeControl "180+1"]
[EndTime "8:19:41 PST"]
[Termination "viviania won on time"]

1. c4 {[%clk 0:03:00.9]} 1... e6 {[%clk 0:02:58.7]} 2. g3 {[%clk 0:03:01.2]}
2... d5 {[%clk 0:02:57.8]} 3. Bg2 {[%clk 0:03:01.8]} 3... dxc4 {[%clk
0:02:57.8]} 4. Qa4+ {[%clk 0:03:01]} 4... Nd7 {[%clk 0:02:53]} 5. Qxc4 {[%clk
0:03:00.6]} 5... a6 {[%clk 0:02:51.3]} 6. Qc2 {[%clk 0:02:58.7]} 6... c5 {[%clk
0:02:43.8]} 7. Nc3 {[%clk 0:02:54.2]} 7... Ngf6 {[%clk 0:02:38.4]} 8. Nf3 {[%clk
0:02:51.9]} 8... Bd6 {[%clk 0:02:26]} 9. O-O {[%clk 0:02:44.8]} 9... O-O {[%clk
0:02:25.9]} 10. Rd1 {[%clk 0:02:42.4]} 10... Qe7 {[%clk 0:02:24.6]} 11. d4
{[%clk 0:02:40.3]} 11... h6 {[%clk 0:02:23.5]} 12. d5 {[%clk 0:02:10.3]} 12...
Nxd5 {[%clk 0:02:10.1]} 13. Nxd5 {[%clk 0:02:09.4]} 13... exd5 {[%clk
0:02:10.5]} 14. Rxd5 {[%clk 0:02:00.3]} 14... Nf6 {[%clk 0:02:10.6]} 15. Rd1
{[%clk 0:01:55.6]} 15... Re8 {[%clk 0:02:08.1]} 16. b3 {[%clk 0:01:33.8]} 16...
Bg4 {[%clk 0:01:58]} 17. Bb2 {[%clk 0:01:24.7]} 17... Rad8 {[%clk 0:01:57.8]}
18. e3 {[%clk 0:01:15.5]} 18... b5 {[%clk 0:01:47.5]} 19. Rac1 {[%clk
0:00:56.9]} 19... Qe6 {[%clk 0:01:28.6]} 20. Qb1 {[%clk 0:00:43.7]} 20... Ne4
{[%clk 0:01:25.2]} 21. Qa1 {[%clk 0:00:41]} 21... Qf5 {[%clk 0:01:18.8]} 22.
Bxg7 {[%clk 0:00:36.5]} 22... Bxf3 {[%clk 0:01:17.8]} 23. Bxf3 {[%clk
0:00:16.1]} 23... Qxf3 {[%clk 0:01:14.5]} 24. Bxh6 {[%clk 0:00:16.5]} 24...
Qxf2+ {[%clk 0:00:38.6]} 25. Kh1 {[%clk 0:00:16.3]} 25... Nxg3+ {[%clk
0:00:37.4]} 26. hxg3 {[%clk 0:00:14.7]} 26... Qf3+ {[%clk 0:00:37.6]} 27. Kg1
{[%clk 0:00:12.3]} 27... Qxg3+ {[%clk 0:00:37.7]} 28. Kf1 {[%clk 0:00:12.8]}
28... Qh3+ {[%clk 0:00:36.7]} 29. Ke2 {[%clk 0:00:12.2]} 29... Qxh6 {[%clk
0:00:26.4]} 30. Rg1+ {[%clk 0:00:08.5]} 30... Kf8 {[%clk 0:00:24.6]} 31. Qc3
{[%clk 0:00:07]} 31... Qh5+ {[%clk 0:00:21.3]} 32. Kf2 {[%clk 0:00:04]} 32...
Qe5 {[%clk 0:00:20.1]} 33. Qd3 {[%clk 0:00:01.9]} 33... Bb8 {[%clk 0:00:16.6]}
34. Qe2 {[%clk 0:00:01.2]} 34... Rd6 {[%clk 0:00:13]} 0-1

[Event "Early-Titled-Tuesday-Blitz-February-13-2024"]
[Site "Chess.com"]
[Date "2024.02.13"]
[Round "2"]
[White "Elnaz_Kaliakhmet"]
[Black "mjray79"]
[Result "1-0"]
[WhiteElo "2322"]
[BlackElo "2717"]
[TimeControl "180+1"]
[EndTime "8:19:42 PST"]
[Termination "Elnaz_Kaliakhmet won by resignation"]

1. d4 {[%clk 0:03:00.9]} 1... Nf6 {[%clk 0:02:58.8]} 2. c4 {[%clk 0:03:00.9]}
2... g6 {[%clk 0:02:58.2]} 3. Nc3 {[%clk 0:03:00.4]} 3... Bg7 {[%clk 0:02:58.4]}
4. e4 {[%clk 0:03:00.9]} 4... d6 {[%clk 0:02:59]} 5. h3 {[%clk 0:02:59.8]} 5...
Na6 {[%clk 0:02:55]} 6. Be3 {[%clk 0:02:59.5]} 6... e5 {[%clk 0:02:53.4]} 7.
dxe5 {[%clk 0:02:52.5]} 7... dxe5 {[%clk 0:02:53.3]} 8. Qxd8+ {[%clk 0:02:53.1]}
8... Kxd8 {[%clk 0:02:53.7]} 9. O-O-O+ {[%clk 0:02:52.1]} 9... Ke8 {[%clk
0:02:29.2]} 10. Nf3 {[%clk 0:02:50.5]} 10... Nd7 {[%clk 0:02:25.1]} 11. Nb5
{[%clk 0:02:40.5]} 11... Ke7 {[%clk 0:02:20.3]} 12. Be2 {[%clk 0:02:13.4]} 12...
b6 {[%clk 0:02:17.9]} 13. Rd2 {[%clk 0:02:06.8]} 13... Bb7 {[%clk 0:02:08.7]}
14. Rhd1 {[%clk 0:02:06.3]} 14... Rhd8 {[%clk 0:02:08.6]} 15. Nc3 {[%clk
0:01:55.5]} 15... c6 {[%clk 0:01:54.9]} 16. Ne1 {[%clk 0:01:29.1]} 16... Nac5
{[%clk 0:01:51.7]} 17. b4 {[%clk 0:01:20.3]} 17... Ne6 {[%clk 0:01:49.4]} 18.
Nc2 {[%clk 0:01:17]} 18... Nf6 {[%clk 0:01:27.7]} 19. g3 {[%clk 0:01:13]} 19...
a5 {[%clk 0:01:20.5]} 20. b5 {[%clk 0:01:09.2]} 20... cxb5 {[%clk 0:01:18.5]}
21. cxb5 {[%clk 0:01:06]} 21... Rxd2 {[%clk 0:01:14.5]} 22. Rxd2 {[%clk
0:01:05.2]} 22... Nxe4 {[%clk 0:01:14.7]} 23. Nxe4 {[%clk 0:01:05]} 23... Bxe4
{[%clk 0:01:15.6]} 24. Bxb6 {[%clk 0:01:03.2]} 24... Rc8 {[%clk 0:01:12.7]} 25.
Kb2 {[%clk 0:00:57.9]} 25... a4 {[%clk 0:01:12.8]} 26. Ba5 {[%clk 0:00:56.1]}
26... Bf5 {[%clk 0:00:57.9]} 27. Bb4+ {[%clk 0:00:55.9]} 27... Ke8 {[%clk
0:00:57.2]} 28. Ne3 {[%clk 0:00:48.6]} 28... Bxh3 {[%clk 0:00:48.1]} 29. b6
{[%clk 0:00:44.7]} 29... Nd4 {[%clk 0:00:45.4]} 30. Ba6 {[%clk 0:00:41.3]} 30...
Rb8 {[%clk 0:00:39.2]} 31. b7 {[%clk 0:00:41.8]} 31... Kd7 {[%clk 0:00:38]} 32.
Nc4 {[%clk 0:00:38.5]} 32... Be6 {[%clk 0:00:29.5]} 33. Na5 {[%clk 0:00:22]}
33... Kc7 {[%clk 0:00:24.5]} 34. Bc5 {[%clk 0:00:22.1]} 34... h5 {[%clk
0:00:17.7]} 35. Ba7 {[%clk 0:00:22.4]} 35... Rxb7+ {[%clk 0:00:16.4]} 36. Bxb7
{[%clk 0:00:21.5]} 36... Nb5 {[%clk 0:00:15.7]} 37. Rc2+ {[%clk 0:00:20]} 37...
Kd6 {[%clk 0:00:15.4]} 38. Bc5+ {[%clk 0:00:20.3]} 38... Kc7 {[%clk 0:00:16]}
39. Ba6 {[%clk 0:00:18.9]} 39... e4+ {[%clk 0:00:15.9]} 40. Kc1 {[%clk
0:00:19.5]} 40... Nc3 {[%clk 0:00:16.3]} 41. Bb4 {[%clk 0:00:18.7]} 1-0

[Event "Early-Titled-Tuesday-Blitz-February-13-2024"]
[Site "Chess.com"]
[Date "2024.02.13"]
[Round "2"]
[White "JonaszBaum"]
[Black "Schattman"]
[Result "1-0"]
[WhiteElo "2657"]
[BlackElo "2395"]
[TimeControl "180+1"]
[EndTime "8:19:42 PST"]
[Termination "JonaszBaum won on time"]

1. d4 {[%clk 0:03:00.9]} 1... Nf6 {[%clk 0:02:59.6]} 2. c4 {[%clk 0:02:59.3]}
2... g6 {[%clk 0:02:59.5]} 3. Nc3 {[%clk 0:02:54.3]} 3... d5 {[%clk 0:02:59.5]}
4. cxd5 {[%clk 0:02:51.4]} 4... Nxd5 {[%clk 0:02:59.5]} 5. e4 {[%clk 0:02:52.1]}
5... Nxc3 {[%clk 0:02:59.5]} 6. bxc3 {[%clk 0:02:53]} 6... Bg7 {[%clk 0:03:00]}
7. Qa4+ {[%clk 0:02:53.1]} 7... c6 {[%clk 0:02:58.4]} 8. Nf3 {[%clk 0:02:49.2]}
8... b5 {[%clk 0:02:58.3]} 9. Qa3 {[%clk 0:02:34]} 9... O-O {[%clk 0:02:53.4]}
10. Be2 {[%clk 0:02:29.5]} 10... a5 {[%clk 0:02:52.1]} 11. Be3 {[%clk
0:02:27.2]} 11... Nd7 {[%clk 0:02:43.7]} 12. O-O {[%clk 0:02:25]} 12... Bb7
{[%clk 0:02:39.8]} 13. e5 {[%clk 0:02:08.1]} 13... e6 {[%clk 0:02:34.6]} 14. h4
{[%clk 0:02:04.4]} 14... h6 {[%clk 0:02:32.9]} 15. Rfd1 {[%clk 0:01:51.5]} 15...
Re8 {[%clk 0:02:32.6]} 16. g3 {[%clk 0:01:43.2]} 16... Nb6 {[%clk 0:02:32.3]}
17. Nd2 {[%clk 0:01:33.2]} 17... Nd5 {[%clk 0:02:30.4]} 18. Ne4 {[%clk 0:01:27]}
18... Nxe3 {[%clk 0:02:16.9]} 19. fxe3 {[%clk 0:01:26.4]} 19... b4 {[%clk
0:01:57.8]} 20. cxb4 {[%clk 0:01:21.4]} 20... axb4 {[%clk 0:01:57.9]} 21. Qxb4
{[%clk 0:01:22.3]} 21... Rb8 {[%clk 0:01:44.2]} 22. Qc3 {[%clk 0:01:12.3]} 22...
c5 {[%clk 0:01:41.1]} 23. Nxc5 {[%clk 0:01:07.1]} 23... Qd5 {[%clk 0:01:40.3]}
24. Nxb7 {[%clk 0:01:05.7]} 24... Qxb7 {[%clk 0:01:37.1]} 25. Rf1 {[%clk
0:01:03.1]} 25... Rec8 {[%clk 0:01:32.9]} 26. Qd3 {[%clk 0:01:01.8]} 26... Bf8
{[%clk 0:01:19.6]} 27. h5 {[%clk 0:01:01.1]} 27... g5 {[%clk 0:01:19.1]} 28. Rf2
{[%clk 0:00:51.7]} 28... Rc7 {[%clk 0:01:06.9]} 29. Raf1 {[%clk 0:00:51.1]}
29... Bg7 {[%clk 0:00:57.8]} 30. Bd1 {[%clk 0:00:49.8]} 30... Qb5 {[%clk
0:00:55]} 31. Qe4 {[%clk 0:00:43.5]} 31... Qb7 {[%clk 0:00:48.5]} 32. Qxb7
{[%clk 0:00:39.3]} 32... Rbxb7 {[%clk 0:00:45.4]} 33. Bb3 {[%clk 0:00:39.3]}
33... Rb5 {[%clk 0:00:41.3]} 34. Kg2 {[%clk 0:00:37.1]} 34... Bf8 {[%clk
0:00:40]} 35. Bxe6 {[%clk 0:00:36]} 35... fxe6 {[%clk 0:00:34.4]} 36. Rxf8+
{[%clk 0:00:35.3]} 36... Kg7 {[%clk 0:00:34.9]} 37. R8f6 {[%clk 0:00:32.8]}
37... Rb2+ {[%clk 0:00:32.4]} 38. R1f2 {[%clk 0:00:33.2]} 38... Rb1 {[%clk
0:00:31.8]} 39. Rg6+ {[%clk 0:00:30.4]} 39... Kh7 {[%clk 0:00:31.4]} 40. Rxe6
{[%clk 0:00:30.7]} 40... Kg7 {[%clk 0:00:30]} 41. Rg6+ {[%clk 0:00:30.3]} 41...
Kh7 {[%clk 0:00:29.3]} 42. e6 {[%clk 0:00:30.3]} 1-0

[Event "Early-Titled-Tuesday-Blitz-February-13-2024"]
[Site "Chess.com"]
[Date "2024.02.13"]
[Round "2"]
[White "Lady_Nika"]
[Black "kushagramohan"]
[Result "1-0"]
[WhiteElo "2608"]
[BlackElo "2848"]
[TimeControl "180+1"]
[EndTime "8:19:44 PST"]
[Termination "Lady_Nika won by checkmate"]

1. d4 {[%clk 0:03:00.9]} 1... Nf6 {[%clk 0:02:52.7]} 2. e3 {[%clk 0:02:59.3]}
2... g6 {[%clk 0:02:52.5]} 3. f4 {[%clk 0:02:54]} 3... Bg7 {[%clk 0:02:52.6]} 4.
Nf3 {[%clk 0:02:51.1]} 4... O-O {[%clk 0:02:53.2]} 5. Bd3 {[%clk 0:02:50.2]}
5... b6 {[%clk 0:02:53.4]} 6. O-O {[%clk 0:02:50.1]} 6... Bb7 {[%clk 0:02:53.8]}
7. c3 {[%clk 0:02:49.9]} 7... d6 {[%clk 0:02:54.2]} 8. Nbd2 {[%clk 0:02:49]}
8... Nbd7 {[%clk 0:02:55.1]} 9. f5 {[%clk 0:02:45.4]} 9... e5 {[%clk 0:02:52.2]}
10. fxe6 {[%clk 0:02:45.1]} 10... fxe6 {[%clk 0:02:52.3]} 11. Qb3 {[%clk
0:02:43.5]} 11... Qe7 {[%clk 0:02:51.4]} 12. Re1 {[%clk 0:02:21.4]} 12... Kh8
{[%clk 0:02:49]} 13. e4 {[%clk 0:02:21.2]} 13... e5 {[%clk 0:02:49.2]} 14. d5
{[%clk 0:02:14.3]} 14... Nc5 {[%clk 0:02:48.3]} 15. Qc2 {[%clk 0:02:13.9]} 15...
Nxd3 {[%clk 0:02:49.2]} 16. Qxd3 {[%clk 0:02:14.7]} 16... Nh5 {[%clk 0:02:50.1]}
17. Nf1 {[%clk 0:02:14.2]} 17... Nf4 {[%clk 0:02:46.5]} 18. Bxf4 {[%clk
0:02:08.4]} 18... Rxf4 {[%clk 0:02:47.4]} 19. Ng3 {[%clk 0:02:04.9]} 19... Raf8
{[%clk 0:02:47.2]} 20. Rf1 {[%clk 0:02:03.1]} 20... Bc8 {[%clk 0:02:46.4]} 21.
Ne2 {[%clk 0:01:59.4]} 21... R4f7 {[%clk 0:02:45.8]} 22. Qe3 {[%clk 0:01:58.4]}
22... Bg4 {[%clk 0:02:42.2]} 23. Nd2 {[%clk 0:01:46.2]} 23... Qh4 {[%clk
0:02:37.1]} 24. Rxf7 {[%clk 0:01:44.5]} 24... Rxf7 {[%clk 0:02:37]} 25. Ng3
{[%clk 0:01:36.7]} 25... Bh6 {[%clk 0:02:29.9]} 26. Qd3 {[%clk 0:01:36.6]} 26...
Qg5 {[%clk 0:02:30.1]} 27. Nc4 {[%clk 0:00:52.2]} 27... b5 {[%clk 0:02:21.9]}
28. Na3 {[%clk 0:00:51.8]} 28... a6 {[%clk 0:02:14.5]} 29. Nc2 {[%clk
0:00:49.2]} 29... Bg7 {[%clk 0:01:55.9]} 30. Rf1 {[%clk 0:00:37.7]} 30... Rxf1+
{[%clk 0:01:55.4]} 31. Nxf1 {[%clk 0:00:36.1]} 31... h5 {[%clk 0:01:52.9]} 32.
Nb4 {[%clk 0:00:29.5]} 32... Qc1 {[%clk 0:01:50.7]} 33. h3 {[%clk 0:00:20.5]}
33... Bd1 {[%clk 0:01:46.2]} 34. b3 {[%clk 0:00:18.4]} 34... a5 {[%clk
0:01:36.1]} 35. Nc6 {[%clk 0:00:18.4]} 35... a4 {[%clk 0:01:35.9]} 36. Qxb5
{[%clk 0:00:18]} 36... Qxc3 {[%clk 0:01:33.9]} 37. bxa4 {[%clk 0:00:16.9]} 37...
Qc2 {[%clk 0:01:19.4]} 38. Ne7 {[%clk 0:00:13.4]} 38... Qxe4 {[%clk 0:01:15.1]}
39. Qe8+ {[%clk 0:00:10.3]} 39... Kh7 {[%clk 0:01:15]} 40. Qg8+ {[%clk
0:00:10.3]} 40... Kh6 {[%clk 0:01:15.5]} 41. Qf7 {[%clk 0:00:09.5]} 41... Qf4
{[%clk 0:00:33.1]} 42. Qxg6# {[%clk 0:00:08.6]} 1-0

[Event "Early-Titled-Tuesday-Blitz-February-13-2024"]
[Site "Chess.com"]
[Date "2024.02.13"]
[Round "2"]
[White "FredddieCroderg"]
[Black "Blitzking642"]
[Result "0-1"]
[WhiteElo "2323"]
[BlackElo "2540"]
[TimeControl "180+1"]
[EndTime "8:19:44 PST"]
[Termination "Blitzking642 won by resignation"]

1. e4 {[%clk 0:03:00.9]} 1... c5 {[%clk 0:02:59.8]} 2. Bc4 {[%clk 0:03:00.7]}
2... e6 {[%clk 0:02:58.9]} 3. Qf3 {[%clk 0:03:00.4]} 3... Nc6 {[%clk 0:02:56.9]}
4. d3 {[%clk 0:03:00.6]} 4... Nf6 {[%clk 0:02:48.7]} 5. Nc3 {[%clk 0:02:59.3]}
5... Be7 {[%clk 0:02:44.1]} 6. Nge2 {[%clk 0:02:54.7]} 6... O-O {[%clk 0:02:43]}
7. O-O {[%clk 0:02:52.7]} 7... a6 {[%clk 0:02:06.8]} 8. Bg5 {[%clk 0:02:49.8]}
8... b5 {[%clk 0:02:03]} 9. Bb3 {[%clk 0:02:49.1]} 9... Bb7 {[%clk 0:02:01.5]}
10. a4 {[%clk 0:02:48.3]} 10... b4 {[%clk 0:01:51.5]} 11. Nd1 {[%clk 0:02:45.7]}
11... d5 {[%clk 0:01:50.8]} 12. exd5 {[%clk 0:02:45.1]} 12... Nxd5 {[%clk
0:01:47.1]} 13. Bxe7 {[%clk 0:02:43.1]} 13... Ncxe7 {[%clk 0:01:44]} 14. Qg3
{[%clk 0:02:37.6]} 14... Nf5 {[%clk 0:01:41.7]} 15. Qh3 {[%clk 0:02:32.4]} 15...
Qf6 {[%clk 0:01:37.3]} 16. Ng3 {[%clk 0:02:27.1]} 16... Nxg3 {[%clk 0:01:31.8]}
17. hxg3 {[%clk 0:02:23.8]} 17... Rad8 {[%clk 0:01:29.2]} 18. Qh4 {[%clk
0:02:19]} 18... Qg6 {[%clk 0:01:10.9]} 19. Ne3 {[%clk 0:02:12]} 19... Nxe3
{[%clk 0:01:08.2]} 20. fxe3 {[%clk 0:02:11.6]} 20... h6 {[%clk 0:00:58]} 21. Rf4
{[%clk 0:02:01.7]} 21... Bd5 {[%clk 0:00:38.8]} 22. Bxd5 {[%clk 0:01:54.5]}
22... Rxd5 {[%clk 0:00:39.3]} 23. Rg4 {[%clk 0:01:45.7]} 23... Rg5 {[%clk
0:00:36.6]} 24. Rxg5 {[%clk 0:01:45.5]} 24... Qxg5 {[%clk 0:00:31.7]} 25. Qxg5
{[%clk 0:01:44.2]} 25... hxg5 {[%clk 0:00:32.6]} 26. Kf2 {[%clk 0:01:39.5]}
26... Rd8 {[%clk 0:00:33]} 27. b3 {[%clk 0:01:35.2]} 27... f6 {[%clk 0:00:32.6]}
28. e4 {[%clk 0:01:33.5]} 28... Kf7 {[%clk 0:00:32.5]} 29. Rh1 {[%clk
0:01:30.4]} 29... Kg6 {[%clk 0:00:32.5]} 30. Ke3 {[%clk 0:01:28.6]} 30... f5
{[%clk 0:00:32]} 31. Kf3 {[%clk 0:01:22.4]} 31... Rd4 {[%clk 0:00:31.4]} 32.
exf5+ {[%clk 0:01:13.9]} 32... exf5 {[%clk 0:00:31.2]} 33. Rh8 {[%clk
0:01:12.1]} 33... f4 {[%clk 0:00:21.6]} 34. Ra8 {[%clk 0:01:06.9]} 34... fxg3
{[%clk 0:00:19.3]} 35. Rxa6+ {[%clk 0:01:06.4]} 35... Kf5 {[%clk 0:00:16.3]} 36.
Rc6 {[%clk 0:01:03]} 36... Rd5 {[%clk 0:00:16.1]} 37. a5 {[%clk 0:01:00.4]}
37... Ke5 {[%clk 0:00:16.7]} 38. a6 {[%clk 0:00:59.9]} 38... Kd4 {[%clk
0:00:16]} 39. a7 {[%clk 0:00:48.6]} 39... Rd8 {[%clk 0:00:16]} 40. Rd6+ {[%clk
0:00:47.1]} 40... Rxd6 {[%clk 0:00:14.9]} 41. a8=Q {[%clk 0:00:47.3]} 41... Kc3
{[%clk 0:00:13.1]} 42. Qf8 {[%clk 0:00:41.8]} 42... Rf6+ {[%clk 0:00:12.5]} 43.
Qxf6+ {[%clk 0:00:37.1]} 43... gxf6 {[%clk 0:00:13.4]} 44. Ke4 {[%clk
0:00:34.8]} 44... Kxc2 {[%clk 0:00:12.9]} 45. Kd5 {[%clk 0:00:35.4]} 45... Kxb3
{[%clk 0:00:11.1]} 46. Kxc5 {[%clk 0:00:35.3]} 46... Kc3 {[%clk 0:00:11.4]} 47.
d4 {[%clk 0:00:35.1]} 47... b3 {[%clk 0:00:12.1]} 48. d5 {[%clk 0:00:35.7]}
48... b2 {[%clk 0:00:12.8]} 49. d6 {[%clk 0:00:36.6]} 49... b1=Q {[%clk
0:00:13.5]} 50. d7 {[%clk 0:00:37.5]} 50... Qd3 {[%clk 0:00:13.5]} 51. Kc6
{[%clk 0:00:37.3]} 51... Kd2 {[%clk 0:00:13.6]} 0-1

[Event "Early-Titled-Tuesday-Blitz-February-13-2024"]
[Site "Chess.com"]
[Date "2024.02.13"]
[Round "2"]
[White "AttilaTurzo"]
[Black "ValiantCeleb"]
[Result "1-0"]
[WhiteElo "2484"]
[BlackElo "2164"]
[TimeControl "180+1"]
[EndTime "8:19:44 PST"]
[Termination "AttilaTurzo won on time"]

1. d4 {[%clk 0:03:00.9]} 1... Nf6 {[%clk 0:02:58.8]} 2. Bf4 {[%clk 0:03:00.3]}
2... d5 {[%clk 0:02:58.2]} 3. Nf3 {[%clk 0:02:57.7]} 3... c5 {[%clk 0:02:57.6]}
4. e3 {[%clk 0:02:58.1]} 4... Nc6 {[%clk 0:02:57.4]} 5. Nbd2 {[%clk 0:02:58.3]}
5... cxd4 {[%clk 0:02:56.5]} 6. exd4 {[%clk 0:02:56.8]} 6... Bf5 {[%clk
0:02:56.6]} 7. c3 {[%clk 0:02:54.1]} 7... e6 {[%clk 0:02:56]} 8. Qb3 {[%clk
0:02:53.7]} 8... Qc8 {[%clk 0:02:49.4]} 9. Nh4 {[%clk 0:02:51.2]} 9... Bg6
{[%clk 0:02:44.9]} 10. Nxg6 {[%clk 0:02:42.4]} 10... hxg6 {[%clk 0:02:45.8]} 11.
Bd3 {[%clk 0:02:41.2]} 11... Nh5 {[%clk 0:02:38.7]} 12. Be3 {[%clk 0:02:34.1]}
12... Bd6 {[%clk 0:02:38.2]} 13. g3 {[%clk 0:02:34]} 13... Nf6 {[%clk
0:02:26.8]} 14. Be2 {[%clk 0:02:28.6]} 14... O-O {[%clk 0:02:14.5]} 15. O-O
{[%clk 0:02:27.8]} 15... a6 {[%clk 0:02:09.2]} 16. a4 {[%clk 0:02:27]} 16... e5
{[%clk 0:02:01.6]} 17. dxe5 {[%clk 0:02:04]} 17... Nxe5 {[%clk 0:02:01.2]} 18.
Kg2 {[%clk 0:02:03.3]} 18... Bc5 {[%clk 0:01:35.4]} 19. Bf4 {[%clk 0:01:47.4]}
19... Re8 {[%clk 0:01:28]} 20. Rae1 {[%clk 0:01:37.7]} 20... Qc6 {[%clk
0:00:57.2]} 21. Bxe5 {[%clk 0:01:11.8]} 21... Rxe5 {[%clk 0:00:55.6]} 22. Bf3
{[%clk 0:01:12.2]} 22... Rxe1 {[%clk 0:00:36.5]} 23. Rxe1 {[%clk 0:01:12]} 23...
Rd8 {[%clk 0:00:30.8]} 24. h3 {[%clk 0:01:02.6]} 24... Qc7 {[%clk 0:00:25.4]}
25. Qc2 {[%clk 0:00:51.2]} 25... Ba7 {[%clk 0:00:20.3]} 26. Rd1 {[%clk
0:00:37.9]} 26... d4 {[%clk 0:00:19.5]} 27. Nb3 {[%clk 0:00:24.4]} 27... dxc3
{[%clk 0:00:16.1]} 28. Rxd8+ {[%clk 0:00:21.9]} 28... Qxd8 {[%clk 0:00:16.7]}
29. Qxc3 {[%clk 0:00:22.2]} 29... Qd7 {[%clk 0:00:15.5]} 30. a5 {[%clk
0:00:18.3]} 30... Kh7 {[%clk 0:00:10.9]} 31. Qb4 {[%clk 0:00:15.5]} 31... Nd5
{[%clk 0:00:10.7]} 32. Qe4 {[%clk 0:00:12.5]} 32... Nf6 {[%clk 0:00:06]} 33.
Qxb7 {[%clk 0:00:12.4]} 33... Qxb7 {[%clk 0:00:02]} 34. Bxb7 {[%clk 0:00:13.3]}
1-0